fUST/lending_fUST_20250314
["ID","MTS","AMOUNT","RATE_DAILY","PERIOD"]
[356142026,1741954233107,-500.0,8.734e-05,2]
[356142027,1741954233117,-500.0,8.734e-05,2]
[356142028,1741954233127,-500.0,8.734e-05,2]
[356142029,1741954233137,-304.28800148,8.734e-05,2]
[356142056,1741954238194,-334.47915669,8.731e-05,2]
[356142058,1741954238204,-482.39084331,8.732e-05,2]
[356142061,1741954238218,-17.60915669,8.732e-05,2]
[356142063,1741954238228,-500.0,8.732e-05,2]
[356142065,1741954238239,-225.86235389,8.734e-05,2]
[356142067,1741954238250,-500.0,8.734e-05,2]
[356142069,1741954238259,-500.0,8.734e-05,2]
[356142071,1741954238269,-500.0,8.734e-05,2]
[356142072,1741954238278,-964.41285744,8.735e-05,2]
[356142096,1741954240174,-1213.42714256,8.735e-05,2]
[356142097,1741954240184,-3326.77,8.735e-05,2]
[356142098,1741954240194,-1793.78,8.735e-05,2]
[356142099,1741954240204,-500.0,8.735e-05,2]
[356142100,1741954240214,-500.0,8.735e-05,2]
[356142101,1741954240224,-3852.97,8.735e-05,2]
[356142103,1741954240234,-17521.91251737,8.735e-05,2]
[356142107,1741954243346,-104.84529183,8.712e-05,2]
[356142112,1741954246370,-4392.88470817,8.712e-05,2]
[356142113,1741954246380,-500.0,8.732e-05,2]
[356142114,1741954246390,-672.54,8.732e-05,2]
[356142115,1741954246400,-1007.66,8.732e-05,2]
[356142116,1741954246410,-500.0,8.733e-05,2]
[356142117,1741954246419,-500.0,8.733e-05,2]
[356142118,1741954246428,-4683.24,8.733e-05,2]
[356142119,1741954246438,-500.0,8.734e-05,2]
[356142120,1741954246452,-50354.50929235,8.735e-05,2]
[356142121,1741954246464,-2205.37627954,8.735e-05,2]
[356142122,1741954246476,-2495.61,8.735e-05,2]
[356142123,1741954246615,-458.48404147,8.735e-05,2]
[356142128,1741954507289,600.0,0.0001,3]
[356142129,1741954805294,151.0,0.0001,3]
[356142130,1741954813155,600.0,0.0001,3]
[356142136,1741955111602,600.0,0.0001,3]
[356142137,1741955134108,-500.0,7.692e-05,2]
[356142138,1741955134133,-500.0,7.692e-05,2]
[356142139,1741955134158,-500.0,7.692e-05,2]
[356142140,1741955134183,-191.78286555,7.692e-05,2]
[356142141,1741955134207,-300.0,7.692e-05,2]
[356142142,1741955134231,-12126.36234628,7.693e-05,2]
[356142147,1741955227134,-4221.29478172,7.693e-05,2]
[356142148,1741955227157,-650.61930025,8.218e-05,2]
[356142149,1741955227180,-300.0,8.218e-05,2]
[356142150,1741955227202,-500.0,8.219e-05,2]
[356142151,1741955227224,-500.0,8.219e-05,2]
[356142152,1741955227246,-500.0,8.219e-05,2]
[356142153,1741955227269,-500.0,8.219e-05,2]
[356142154,1741955227292,-500.0,8.219e-05,2]
[356142155,1741955227314,-500.0,8.219e-05,2]
[356142156,1741955227336,-500.0,8.219e-05,2]
[356142157,1741955227357,-508.06,8.219e-05,2]
[356142158,1741955227380,-607.03,8.219e-05,2]
[356142159,1741955227404,-4488.11,8.219e-05,2]
[356142160,1741955227427,-500.0,8.219e-05,2]
[356142161,1741955227451,-3144.1,8.219e-05,2]
[356142162,1741955227474,-500.0,8.219e-05,2]
[356142163,1741955227501,-500.0,8.219e-05,2]
[356142164,1741955227524,-1417.68,8.219e-05,2]
[356142165,1741955227547,-500.0,8.219e-05,2]
[356142166,1741955227570,-6277.07,8.219e-05,2]
[356142167,1741955227602,-1272.76,8.219e-05,2]
[356142168,1741955227629,-500.0,8.219e-05,2]
[356142169,1741955227655,-500.0,8.219e-05,2]
[356142170,1741955227680,-500.0,8.219e-05,2]
[356142171,1741955227707,-1569.56,8.219e-05,2]
[356142172,1741955227730,-2734.43,8.219e-05,2]
[356142173,1741955227757,-933.66,8.219e-05,2]
[356142174,1741955227781,-1214.52,8.219e-05,2]
[356142175,1741955227804,-500.0,8.219e-05,2]
[356142176,1741955227830,-1471.53,8.219e-05,2]
[356142177,1741955227854,-3308.25,8.219e-05,2]
[356142178,1741955227877,-500.0,8.219e-05,2]
[356142179,1741955227902,-612.35,8.219e-05,2]
[356142180,1741955227925,-500.0,8.219e-05,2]
[356142181,1741955227947,-500.0,8.219e-05,2]
[356142182,1741955227971,-1975.21,8.219e-05,2]
[356142183,1741955227993,-500.0,8.219e-05,2]
[356142184,1741955228017,-500.0,8.219e-05,2]
[356142185,1741955228040,-500.0,8.219e-05,2]
[356142186,1741955228063,-1012.17,8.219e-05,2]
[356142187,1741955228086,-500.0,8.219e-05,2]
[356142188,1741955228108,-685.47,8.219e-05,2]
[356142189,1741955228130,-500.0,8.219e-05,2]
[356142190,1741955228156,-1182.39,8.219e-05,2]
[356142191,1741955228178,-500.0,8.219e-05,2]
[356142192,1741955228200,-500.0,8.219e-05,2]
[356142193,1741955228222,-500.0,8.219e-05,2]
[356142194,1741955228246,-500.0,8.219e-05,2]
[356142195,1741955228269,-3697.78,8.219e-05,2]
[356142196,1741955228291,-500.0,8.219e-05,2]
[356142197,1741955228314,-686.19,8.219e-05,2]
[356142198,1741955228336,-4780.48,8.219e-05,2]
[356142199,1741955228358,-176.70626499,8.438e-05,2]
[356142200,1741955228380,-500.0,8.493e-05,2]
[356142201,1741955228408,-500.0,8.493e-05,2]
[356142202,1741955228431,-500.0,8.493e-05,2]
[356142203,1741955228454,-500.0,8.493e-05,2]
[356142204,1741955228477,-500.0,8.493e-05,2]
[356142205,1741955228502,-500.0,8.493e-05,2]
[356142206,1741955228527,-500.0,8.493e-05,2]
[356142207,1741955228549,-508.06,8.493e-05,2]
[356142208,1741955228573,-607.03,8.493e-05,2]
[356142209,1741955228599,-4488.11,8.493e-05,2]
[356142210,1741955228622,-500.0,8.493e-05,2]
[356142211,1741955228646,-3144.1,8.493e-05,2]
[356142212,1741955228668,-500.0,8.493e-05,2]
[356142213,1741955228692,-500.0,8.493e-05,2]
[356142214,1741955228715,-1417.68,8.493e-05,2]
[356142215,1741955228737,-500.0,8.493e-05,2]
[356142216,1741955228764,-6277.07,8.493e-05,2]
[356142217,1741955228788,-1272.76,8.493e-05,2]
[356142218,1741955228810,-500.0,8.493e-05,2]
[356142219,1741955228836,-500.0,8.493e-05,2]
[356142220,1741955228859,-500.0,8.493e-05,2]
[356142221,1741955228883,-2734.43,8.493e-05,2]
[356142222,1741955228906,-933.66,8.493e-05,2]
[356142223,1741955228930,-1214.52,8.493e-05,2]
[356142224,1741955228953,-500.0,8.493e-05,2]
[356142225,1741955228977,-1471.53,8.493e-05,2]
[356142226,1741955229000,-3308.25,8.493e-05,2]
[356142227,1741955229022,-612.35,8.493e-05,2]
[356142228,1741955229045,-500.0,8.493e-05,2]
[356142229,1741955229068,-1975.21,8.493e-05,2]
[356142230,1741955229090,-500.0,8.493e-05,2]
[356142231,1741955229112,-500.0,8.493e-05,2]
[356142232,1741955229134,-500.0,8.493e-05,2]
[356142233,1741955229160,-1012.17,8.493e-05,2]
[356142234,1741955229182,-685.47,8.493e-05,2]
[356142235,1741955229205,-500.0,8.493e-05,2]
[356142236,1741955229227,-500.0,8.493e-05,2]
[356142237,1741955229250,-1182.39,8.493e-05,2]
[356142238,1741955229273,-500.0,8.493e-05,2]
[356142239,1741955229295,-500.0,8.493e-05,2]
[356142240,1741955229319,-500.0,8.493e-05,2]
[356142241,1741955229342,-3697.78,8.493e-05,2]
[356142242,1741955229365,-500.0,8.493e-05,2]
[356142243,1741955229388,-686.19,8.493e-05,2]
[356142244,1741955229411,-4780.48,8.493e-05,2]
[356142245,1741955229434,-176.70626499,8.548e-05,2]
[356142246,1741955229456,-153.0,8.55e-05,2]
[356142247,1741955229478,-155.55286,8.55e-05,2]
[356142248,1741955229500,-559.9647179,8.55e-05,2]
[356142249,1741955229523,-503.5345434,8.55e-05,2]
[356142250,1741955229545,-153.0,8.55e-05,2]
[356142251,1741955229568,-559.9647179,8.55e-05,2]
[356142252,1741955229590,-186.8724011,8.55e-05,2]
[356142253,1741955229612,-153.0,8.55e-05,2]
[356142254,1741955229634,-186.9553738,8.55e-05,2]
[356142255,1741955229658,-155.417131,8.55e-05,2]
[356142256,1741955229680,-559.6044626,8.55e-05,2]
[356142257,1741955229703,-153.0,8.55e-05,2]
[356142258,1741955229727,-1569.56,8.634e-05,2]
[356142259,1741955229755,-1569.56,8.634e-05,2]
[356142260,1741955229779,-1569.56,8.634e-05,2]
[356142261,1741955229804,-1569.56,8.634e-05,2]
[356142262,1741955229831,-1569.56,8.634e-05,2]
[356142263,1741955229855,-1569.56,8.634e-05,2]
[356142264,1741955229878,-1569.56,8.634e-05,2]
[356142265,1741955229901,-1569.56,8.634e-05,2]
[356142266,1741955229926,-1569.56,8.634e-05,2]
[356142267,1741955229949,-1569.56,8.634e-05,2]
[356142268,1741955229974,-1569.56,8.634e-05,2]
[356142269,1741955229997,-422.7742562,8.634e-05,2]
[356142270,1741955230322,-21611.78066054,8.635e-05,2]
[356142271,1741955245095,-283.19457227,8.219e-05,2]
[356142272,1741955289206,-200.0,0.00027,120]
[356142273,1741955289233,-3050.62873499,0.00027397,120]
[356142274,1741955289263,-1206.89,0.0002837,60]
[356142275,1741955289291,-200.39306,0.00029,120]
[356142276,1741955289323,-200.0,0.000323,120]
[356142277,1741955289354,-500.0,0.00032876,120]
[356142278,1741955289380,-500.0,0.00032876,120]
[356142279,1741955289406,-500.0,0.00032876,120]
[356142280,1741955289432,-500.0,0.00032876,120]
[356142281,1741955289458,-500.0,0.00032876,120]
[356142282,1741955289485,-500.0,0.00032876,120]
[356142283,1741955289512,-500.0,0.00032876,120]
[356142284,1741955289539,-500.0,0.00032876,120]
[356142285,1741955289564,-500.0,0.00032876,120]
[356142286,1741955289590,-500.0,0.00032876,120]
[356142287,1741955289615,-500.0,0.00032876,120]
[356142288,1741955289641,-500.0,0.00032876,120]
[356142289,1741955289668,-500.0,0.00032876,120]
[356142290,1741955289698,-502.89,0.00035,120]
[356142291,1741955289725,-1133.0,0.00036,120]
[356142292,1741955289753,-200.0,0.000376,120]
[356142293,1741955289783,-1333.0,0.00037753,120]
[356142294,1741955289819,-292.0,0.0004,120]
[356142295,1741955289845,-695.0,0.0004,60]
[356142296,1741955289871,-416.66666667,0.0004,120]
[356142297,1741955289897,-802.87,0.00041095,120]
[356142298,1741955289922,-500.0,0.00041095,120]
[356142299,1741955289950,-507.54617444,0.00041095,120]
[356142300,1741955289978,-2083.45,0.00041095,120]
[356142301,1741955290006,-802.87,0.00042465,120]
[356142302,1741955290032,-2083.45,0.00042465,120]
[356142303,1741955290057,-200.0,0.000429,120]
[356142304,1741955290084,-802.87,0.00043835,120]
[356142305,1741955290110,-961.87235894,0.00043835,120]
[356142306,1741955290136,-2083.45,0.00043835,120]
[356142307,1741955290163,-260.0,0.00044,120]
[356142308,1741955290188,-1551.18,0.00044136,120]
[356142309,1741955290215,-1551.18,0.00044136,120]
[356142310,1741955290240,-1551.18,0.00044136,120]
[356142311,1741955290267,-1551.18,0.00044136,120]
[356142312,1741955290292,-1551.18,0.00044136,120]
[356142313,1741955290318,-1551.18,0.00044136,120]
[356142314,1741955290343,-1551.18,0.00044136,120]
[356142315,1741955290369,-1551.18,0.00044136,120]
[356142316,1741955290395,-1551.18,0.00044136,120]
[356142317,1741955290420,-1551.18,0.00044136,120]
[356142318,1741955290447,-1551.18,0.00044136,120]
[356142319,1741955290474,-1551.18,0.00044136,120]
[356142320,1741955290500,-1551.18,0.00044136,120]
[356142321,1741955290527,-1551.18,0.00044136,120]
[356142322,1741955290555,-1551.18,0.00044136,120]
[356142323,1741955290582,-1551.18,0.00044136,120]
[356142324,1741955290608,-1551.18,0.00044136,120]
[356142325,1741955290633,-1551.18,0.00044136,120]
[356142326,1741955290659,-1551.18,0.00044136,120]
[356142327,1741955290686,-1551.18,0.00044136,120]
[356142328,1741955290712,-1551.18,0.00044136,120]
[356142329,1741955290738,-1551.18,0.00044136,120]
[356142330,1741955290767,-1551.18,0.00044136,120]
[356142331,1741955290795,-1551.35570195,0.00044136,120]
[356142332,1741955290822,-500.0,0.00044642,120]
[356142333,1741955290852,-500.0,0.00044916,120]
[356142334,1741955290879,-151.0,0.00045,120]
[356142335,1741955290905,-151.0,0.00045,120]
[356142336,1741955290933,-1000.01277667,0.00045,60]
[356142337,1741955290959,-132523.29325407,0.00045,120]
[356142338,1741955290985,-269648.63293655,0.00045,120]
[356142339,1741955291010,-445.0,0.00045,90]
[356142340,1741955291236,-500.0,0.0004519,120]
[356142341,1741955291264,-802.87,0.00045205,120]
[356142342,1741955291290,-2083.45,0.00045205,120]
[356142343,1741955291316,-1047.70445947,0.00045453,94]
[356142344,1741955291342,-1047.70445947,0.00045553,92]
[356142345,1741955291368,-1047.70445947,0.00045653,95]
[356142346,1741955291394,-445.0,0.00045724,90]
[356142347,1741955291419,-500.0,0.00045738,120]
[356142348,1741955291445,-1047.70445947,0.00045753,96]
[356142349,1741955291473,-1047.70445947,0.00045853,99]
[356142350,1741955291500,-1047.70445947,0.00045953,99]
[356142351,1741955291528,-200.0,0.00045961,120]
[356142352,1741955291561,-445.0,0.00045998,90]
[356142353,1741955291591,-1047.70445947,0.00046053,92]
[356142354,1741955291617,-1047.70445947,0.00046153,98]
[356142355,1741955291645,-1047.70445947,0.00046253,91]
[356142356,1741955291672,-445.0,0.00046272,90]
[356142357,1741955291699,-200.0,0.00046284,120]
[356142358,1741955291725,-500.0,0.00046286,120]
[356142359,1741955291752,-1047.70445947,0.00046353,94]
[356142360,1741955291784,-200.0,0.00046396,120]
[356142361,1741955291811,-1047.70445947,0.00046453,96]
[356142362,1741955291837,-6888.51,0.000465,120]
[356142363,1741955291865,-10000.0,0.000465,120]
[356142364,1741955291890,-445.0,0.00046546,90]
[356142365,1741955291916,-1047.70445947,0.00046553,100]
[356142366,1741955291942,-802.87,0.00046575,120]
[356142367,1741955291970,-2083.45,0.00046575,120]
[356142369,1741955307758,152.18963839,0.000252,120]
[356142370,1741955318595,2438.50943331,0.00044,60]
[356142371,1741955319243,2920.04741298,0.0003,120]
[356142379,1741955319930,1865.4460992,0.00035,120]
[356142381,1741955323520,2000001.0,0.00046575,59]
[356142382,1741955323897,801.21175215,0.00039,120]
[356142383,1741955324377,1717.38932465,0.00046,120]
[356142385,1741955325331,1444.90387877,0.0004,120]
[356142386,1741955325538,2825.93594011,0.00042,120]
[356142387,1741955325957,653.4704342,0.00035,120]
[356142388,1741955329162,223.7554836,0.0004,120]
[356142389,1741955329838,506.78,0.00043,120]
[356142390,1741955334464,2000001.0,0.00046575,59]
[356142391,1741955336173,2000001.0,0.00046575,59]
[356142392,1741955337812,2000001.0,0.00046575,59]
[356142412,1741955359055,-1971.81,0.00041095,120]
[356142413,1741955359093,-172.852013,0.0004325,90]
[356142414,1741955359131,-172.852013,0.00046539,60]
[356142415,1741955359168,1971.81,0.00042465,120]
[356142416,1741955359243,1971.81,0.00043835,120]
[356142417,1741955359298,1971.81,0.00045205,120]
[356142418,1741955359622,1971.81,0.00046575,120]
[356142419,1741955360080,-187.97587395,8.218e-05,2]
[356142420,1741955360106,-170.13699082,8.219e-05,2]
[356142421,1741955360130,-3831.78,8.219e-05,2]
[356142422,1741955360155,-735.08,8.219e-05,2]
[356142423,1741955360179,-4871.83,8.219e-05,2]
[356142424,1741955360202,-500.0,8.219e-05,2]
[356142425,1741955360232,-500.0,8.219e-05,2]
[356142426,1741955360262,-1272.99,8.219e-05,2]
[356142427,1741955360286,-500.0,8.219e-05,2]
[356142428,1741955360311,-515.05479477,8.219e-05,2]
[356142429,1741955360335,-5441.23,8.219e-05,2]
[356142430,1741955360360,-500.0,8.219e-05,2]
[356142431,1741955360386,-5256.9089379,8.219e-05,2]
[356142432,1741955364918,-2421.82975048,8.219e-05,2]
[356142440,1741955375494,1492200.0,0.00046575,59]
[356142441,1741955378658,1102.03995403,0.000465,120]
[356142497,1741955411410,600.0,0.0001,3]
[356142526,1741955438325,-300.0,8.218e-05,2]
[356142527,1741955438335,-14714.57131162,8.219e-05,2]
[356142528,1741955438344,-500.0,8.219e-05,2]
[356142529,1741955438355,-500.0,8.219e-05,2]
[356142530,1741955438364,-500.0,8.219e-05,2]
[356142531,1741955438374,-4797.7,8.219e-05,2]
[356142532,1741955438384,-500.0,8.219e-05,2]
[356142533,1741955438393,-500.0,8.219e-05,2]
[356142534,1741955438403,-1022.62,8.219e-05,2]
[356142535,1741955438412,-799.66,8.219e-05,2]
[356142536,1741955438422,-4953.51105466,8.219e-05,2]
[356142541,1741955438642,-800.46894534,8.219e-05,2]
[356142542,1741955438652,-1295.39,8.219e-05,2]
[356142543,1741955438662,-500.0,8.219e-05,2]
[356142544,1741955438671,-742.44,8.219e-05,2]
[356142545,1741955438681,-508.98272789,8.219e-05,2]
[356142546,1741955438690,-500.0,8.219e-05,2]
[356142547,1741955438700,-500.0,8.219e-05,2]
[356142548,1741955438709,-500.0,8.219e-05,2]
[356142549,1741955438719,-10834.17,8.219e-05,2]
[356142550,1741955438730,-500.0,8.219e-05,2]
[356142551,1741955438739,-500.0,8.219e-05,2]
[356142552,1741955438748,-734.38,8.219e-05,2]
[356142553,1741955438758,-636.62,8.219e-05,2]
[356142554,1741955438767,-2157.62877007,8.219e-05,2]
[356142555,1741955439859,-1482.60122993,8.219e-05,2]
[356142556,1741955439870,-500.0,8.219e-05,2]
[356142557,1741955439881,-855.86,8.219e-05,2]
[356142558,1741955439893,-500.0,8.219e-05,2]
[356142559,1741955439904,-2521.46,8.219e-05,2]
[356142560,1741955439915,-500.0,8.219e-05,2]
[356142561,1741955439925,-1686.11,8.219e-05,2]
[356142562,1741955439937,-500.0,8.219e-05,2]
[356142563,1741955439948,-500.0,8.219e-05,2]
[356142564,1741955439958,-500.0,8.219e-05,2]
[356142565,1741955439968,-658.03,8.219e-05,2]
[356142566,1741955439978,-500.0,8.219e-05,2]
[356142572,1741955440214,-500.0,8.219e-05,2]
[356142573,1741955440224,-1028.35,8.219e-05,2]
[356142574,1741955440235,-2945.65,8.219e-05,2]
[356142575,1741955440245,-819.46,8.219e-05,2]
[356142576,1741955440255,-6304.86,8.219e-05,2]
[356142577,1741955440265,-500.0,8.219e-05,2]
[356142578,1741955440275,-500.0,8.219e-05,2]
[356142579,1741955440285,-500.0,8.219e-05,2]
[356142580,1741955440295,-500.0,8.219e-05,2]
[356142581,1741955440304,-6521.68,8.219e-05,2]
[356142582,1741955440314,-546.02,8.219e-05,2]
[356142583,1741955440323,-518.59887556,8.219e-05,2]
[356142584,1741955440333,-500.0,8.219e-05,2]
[356142585,1741955440343,-500.0,8.219e-05,2]
[356142586,1741955440354,-4272.65,8.219e-05,2]
[356142587,1741955440363,-677.8,8.219e-05,2]
[356142588,1741955440373,-500.0,8.219e-05,2]
[356142589,1741955440383,-500.0,8.219e-05,2]
[356142590,1741955440392,-16426.33940956,8.219e-05,2]
[356142613,1741955443463,-249.5183108,8.219e-05,2]
[356142663,1741955713229,600.0,0.0001,3]
[356142665,1741955920445,-150.0,8.055e-05,2]
[356142666,1741955938737,3688.74939845,0.0001,3]
[356142673,1741956157736,-25.70875496,8.055e-05,2]
[356142674,1741956157762,-193.05046641,8.055e-05,2]
[356142675,1741956167951,-297.2889598,8.055e-05,2]
[356142676,1741956182584,-178.01157379,8.055e-05,2]
[356142677,1741956182608,-36.78681532,8.192e-05,2]
[356142678,1741956242071,-186.88883218,8.192e-05,2]
[356142679,1741956247086,-96.38918933,8.192e-05,2]
[356142680,1741956247111,-54.59649226,8.192e-05,2]
[356142683,1741956305209,-150.0,8.193e-05,2]
[356142684,1741956312887,-350.0,8.193e-05,2]
[356142685,1741956312911,-150.0,8.193e-05,2]
[356142686,1741956314505,-350.0,8.193e-05,2]
[356142687,1741956316034,-500.0,8.193e-05,2]
[356142688,1741956318434,-150.0,8.2e-05,2]
[356142689,1741956318457,-211.0,8.2e-05,2]
[356142690,1741956318479,-422.0,8.2e-05,2]
[356142691,1741956318504,-845.0,8.2e-05,2]
[356142692,1741956318526,-506.0,8.2e-05,2]
[356142693,1741956319551,-500.0,8.2e-05,2]
[356142694,1741956322637,-683.0,8.2e-05,2]
[356142695,1741956323666,-333.0,8.2e-05,2]
[356142696,1741956326738,-227.53727826,8.118e-05,2]
[356142697,1741956337216,-189.9055107,8.118e-05,2]
[356142698,1741956345000,-150.0,8.118e-05,2]
[356142699,1741956351137,-372.71878128,8.118e-05,2]
[356142700,1741956352790,-150.0,8.118e-05,2]
[356142701,1741956363273,-150.0,8.037e-05,2]
[356142702,1741956364887,-150.0,8.118e-05,2]
[356142704,1741956367578,-161.8982895,8.118e-05,2]
[356142705,1741956379870,-300.0,8.118e-05,2]
[356142706,1741956388370,-164.340267,8.118e-05,2]
[356142707,1741956391211,-162.48044704,8.118e-05,2]
[356142708,1741956400076,-300.0,8.118e-05,2]
[356142716,1741956406925,-381.11645439,8.118e-05,2]
[356142717,1741956416595,-152.8225684,8.118e-05,2]
[356142718,1741956421225,-206.89660538,8.118e-05,2]
[356142719,1741956424401,-282.06692467,8.118e-05,2]
[356142720,1741956428941,-500.0,8.118e-05,2]
[356142721,1741956431875,-300.0,8.118e-05,2]
[356142722,1741956434764,-150.0,8.118e-05,2]
[356142724,1741956447137,-698.21687338,8.118e-05,2]
[356142725,1741956447160,-381.11645439,8.192e-05,2]
[356142726,1741956447185,-401.3542901,8.192e-05,2]
[356142727,1741956447207,-300.0,8.192e-05,2]
[356142728,1741956447228,-500.0,8.193e-05,2]
[356142729,1741956447249,-500.0,8.193e-05,2]
[356142730,1741956447270,-468.59008393,8.193e-05,2]
[356142731,1741956447290,-500.0,8.193e-05,2]
[356142732,1741956447311,-420.67002841,8.193e-05,2]
[356142733,1741956447331,-500.0,8.193e-05,2]
[356142734,1741956447350,-500.0,8.193e-05,2]
[356142735,1741956447372,-500.0,8.193e-05,2]
[356142736,1741956447392,-500.0,8.193e-05,2]
[356142737,1741956447412,-500.0,8.193e-05,2]
[356142738,1741956447434,-500.0,8.193e-05,2]
[356142739,1741956447454,-500.0,8.193e-05,2]
[356142740,1741956447475,-500.24236722,8.193e-05,2]
[356142741,1741956447496,-500.81139481,8.193e-05,2]
[356142742,1741956447517,-503.9014203,8.193e-05,2]
[356142743,1741956447538,-500.0,8.193e-05,2]
[356142744,1741956447559,-500.48078761,8.193e-05,2]
[356142745,1741956447580,-500.0,8.193e-05,2]
[356142746,1741956447600,-418.09589856,8.193e-05,2]
[356142747,1741956447622,-500.0,8.193e-05,2]
[356142748,1741956447642,-500.0,8.193e-05,2]
[356142749,1741956447664,-526.10108369,8.193e-05,2]
[356142750,1741956447686,-500.0,8.193e-05,2]
[356142751,1741956447708,-405.07508102,8.193e-05,2]
[356142752,1741956447728,-500.0,8.193e-05,2]
[356142753,1741956447751,-500.0,8.193e-05,2]
[356142754,1741956447772,-574.93847377,8.193e-05,2]
[356142755,1741956447792,-500.0,8.193e-05,2]
[356142756,1741956447814,-401.01408196,8.193e-05,2]
[356142757,1741956447834,-1801.0,8.2e-05,2]
[356142758,1741956447855,-3289.0,8.2e-05,2]
[356142759,1741956447875,-3379.0,8.2e-05,2]
[356142760,1741956447896,-5220.0,8.2e-05,2]
[356142761,1741956447920,-5445.4805975,8.21e-05,2]
[356142762,1741956447941,-500.0,8.219e-05,2]
[356142763,1741956447962,-500.0,8.219e-05,2]
[356142764,1741956447983,-500.0,8.219e-05,2]
[356142765,1741956448005,-500.0,8.219e-05,2]
[356142766,1741956448027,-500.0,8.219e-05,2]
[356142767,1741956448048,-500.0,8.219e-05,2]
[356142768,1741956448069,-500.0,8.219e-05,2]
[356142769,1741956448091,-500.0,8.219e-05,2]
[356142770,1741956448114,-500.0,8.219e-05,2]
[356142771,1741956448134,-408.7338296,8.219e-05,2]
[356142772,1741956448155,-500.0,8.219e-05,2]
[356142773,1741956448175,-500.0,8.219e-05,2]
[356142774,1741956448197,-500.0,8.219e-05,2]
[356142775,1741956448220,-500.0,8.219e-05,2]
[356142776,1741956448240,-500.0,8.219e-05,2]
[356142777,1741956448262,-500.0,8.219e-05,2]
[356142778,1741956448282,-500.0,8.219e-05,2]
[356142779,1741956448303,-500.0,8.219e-05,2]
[356142780,1741956448323,-500.0,8.219e-05,2]
[356142781,1741956448344,-505.78267206,8.219e-05,2]
[356142782,1741956448365,-500.0,8.219e-05,2]
[356142783,1741956448397,-500.0,8.219e-05,2]
[356142784,1741956448422,-500.0,8.219e-05,2]
[356142785,1741956448444,-500.0,8.219e-05,2]
[356142786,1741956448465,-500.0,8.219e-05,2]
[356142787,1741956448486,-500.0,8.219e-05,2]
[356142788,1741956448508,-500.0,8.219e-05,2]
[356142789,1741956448862,-500.0,8.219e-05,2]
[356142790,1741956448885,-589.07045565,8.219e-05,2]
[356142791,1741956448906,-500.0,8.219e-05,2]
[356142792,1741956448927,-500.0,8.219e-05,2]
[356142793,1741956448948,-500.0,8.219e-05,2]
[356142794,1741956448971,-500.0,8.219e-05,2]
[356142795,1741956448993,-500.0,8.219e-05,2]
[356142796,1741956449015,-500.0,8.219e-05,2]
[356142797,1741956449036,-500.0,8.219e-05,2]
[356142798,1741956449057,-381.62742649,8.219e-05,2]
[356142799,1741956449077,-501.44490831,8.219e-05,2]
[356142800,1741956449098,-500.0,8.219e-05,2]
[356142801,1741956449123,-500.0,8.219e-05,2]
[356142802,1741956449143,-506.4603627,8.219e-05,2]
[356142803,1741956449169,-500.0,8.219e-05,2]
[356142804,1741956449190,-500.0,8.219e-05,2]
[356142805,1741956449212,-500.0,8.219e-05,2]
[356142806,1741956449233,-500.0,8.219e-05,2]
[356142807,1741956449256,-501.94649702,8.219e-05,2]
[356142808,1741956449277,-500.0,8.219e-05,2]
[356142809,1741956449299,-762.85,8.219e-05,2]
[356142810,1741956449320,-502.65769361,8.219e-05,2]
[356142811,1741956449343,-500.0,8.219e-05,2]
[356142812,1741956449364,-1409.11,8.219e-05,2]
[356142813,1741956449385,-500.0,8.219e-05,2]
[356142814,1741956449406,-1529.12,8.219e-05,2]
[356142815,1741956449427,-500.0,8.219e-05,2]
[356142816,1741956449448,-510.09469775,8.219e-05,2]
[356142817,1741956449469,-510.76656282,8.219e-05,2]
[356142818,1741956449490,-509.98319616,8.219e-05,2]
[356142819,1741956449512,-500.0,8.219e-05,2]
[356142820,1741956449533,-500.0,8.219e-05,2]